fUST/lending_fUST_20240226
["ID","MTS","AMOUNT","RATE_DAILY","PERIOD"]
[315197925,1708925443222,-500.0,0.00019452,2]
[315197926,1708925443232,-500.0,0.00019452,2]
[315197927,1708925443241,-500.0,0.00019452,2]
[315197928,1708925443250,-500.0,0.00019452,2]
[315197929,1708925443259,-500.0,0.00019452,2]
[315197930,1708925443268,-2173.34,0.00019452,2]
[315197931,1708925443277,-500.0,0.00019452,2]
[315197932,1708925443286,-500.0,0.00019452,2]
[315197933,1708925443295,-1217.01,0.00019452,2]
[315197934,1708925443304,-1703.94,0.00019452,2]
[315197935,1708925443313,-3344.76,0.00019452,2]
[315197936,1708925443322,-500.0,0.00019452,2]
[315197937,1708925443331,-640.38620748,0.00019452,2]
[315197938,1708925443340,-1592.75,0.00019452,2]
[315197939,1708925443349,-249.09722205,0.00019452,2]
[315197940,1708925443358,-1477.38,0.00019452,2]
[315197941,1708925443367,-500.0,0.00019452,2]
[315197942,1708925443376,-500.0,0.00019452,2]
[315197943,1708925443385,-500.0,0.00019452,2]
[315197944,1708925443394,-151.4394318,0.00019462,2]
[315197945,1708925443404,-218.91427631,0.00019462,2]
[315197946,1708925443413,-7330.41372259,0.00019464,2]
[315197947,1708925443422,-7330.41372259,0.00019466,2]
[315197948,1708925443432,-7330.41372259,0.0001947,2]
[315197949,1708925443441,-182.85476532,0.00019482,2]
[315197950,1708925443450,-182.85476532,0.00019488,2]
[315197951,1708925443459,-182.85476532,0.00019488,2]
[315197952,1708925443467,-3232.05010345,0.00019625,2]
[315197953,1708925443476,-166.666666,0.00019627,2]
[315197954,1708925443485,-5529.96122929,0.000197,2]
[315197955,1708925443494,-5529.96122929,0.000197,2]
[315197956,1708925443503,-5529.96122929,0.000197,2]
[315197957,1708925443512,-306.0,0.000197,2]
[315197958,1708925443521,-153.0,0.000197,2]
[315197959,1708925443530,-88475.46008879,0.00019704,2]
[315197960,1708925443540,-500.0,0.00019725,2]
[315197961,1708925443549,-500.0,0.00019725,2]
[315197962,1708925443558,-500.0,0.00019725,2]
[315197963,1708925443567,-500.0,0.00019725,2]
[315197964,1708925443576,-738.69,0.00019726,2]
[315197965,1708925443586,-500.0,0.00019726,2]
[315197966,1708925443595,-501.61886765,0.00019726,2]
[315197967,1708925443604,-500.0,0.00019726,2]
[315197968,1708925443613,-500.0,0.00019726,2]
[315197969,1708925443622,-500.0,0.00019726,2]
[315197970,1708925443631,-502.59254661,0.00019726,2]
[315197971,1708925443640,-500.0,0.00019726,2]
[315197972,1708925443649,-390.70436853,0.00019726,2]
[315197973,1708925443660,-500.0,0.00019726,2]
[315197974,1708925443669,-500.0,0.00019726,2]
[315197975,1708925443678,-500.0,0.00019726,2]
[315197976,1708925443687,-502.0457706,0.00019726,2]
[315197977,1708925443696,-500.0,0.00019726,2]
[315197978,1708925443705,-500.0,0.00019726,2]
[315197979,1708925443714,-599.46,0.00019726,2]
[315197980,1708925443724,-501.98549869,0.00019726,2]
[315197981,1708925443733,-500.0,0.00019726,2]
[315197982,1708925443741,-500.0,0.00019726,2]
[315197983,1708925443751,-500.0,0.00019726,2]
[315197984,1708925443760,-502.06092799,0.00019726,2]
[315197985,1708925443770,-500.0,0.00019726,2]
[315197986,1708925443779,-500.0,0.00019726,2]
[315197987,1708925443788,-503.24638074,0.00019726,2]
[315197988,1708925443798,-501.23396073,0.00019726,2]
[315197989,1708925443807,-500.0,0.00019726,2]
[315197990,1708925443817,-501.76089687,0.00019726,2]
[315197991,1708925443827,-209.81817441,0.00019726,2]
[315197992,1708925443837,-501.16377799,0.00019726,2]
[315197993,1708925443846,-336.17917651,0.00019726,2]
[315197994,1708925443856,-605.96442716,0.00019726,2]
[315197995,1708925443866,-500.0,0.00019726,2]
[315197996,1708925443875,-378.09595608,0.00019726,2]
[315197997,1708925443885,-152.40498538,0.00019726,2]
[315197998,1708925443894,-500.0,0.00019726,2]
[315197999,1708925443904,-1582.42,0.00019726,2]
[315198000,1708925443914,-507.56824653,0.00019726,2]
[315198001,1708925443923,-500.0,0.00019726,2]
[315198002,1708925443932,-500.0,0.00019726,2]
[315198003,1708925443942,-1464.53,0.00019726,2]
[315198004,1708925443951,-599.04,0.00019726,2]
[315198005,1708925443960,-792.95,0.00019726,2]
[315198006,1708925443969,-500.0,0.00019726,2]
[315198007,1708925443978,-504.63239658,0.00019726,2]
[315198008,1708925443987,-504.21335184,0.00019726,2]
[315198009,1708925443997,-500.0,0.00019726,2]
[315198010,1708925444006,-500.0,0.00019726,2]
[315198011,1708925444016,-500.0,0.00019726,2]
[315198012,1708925444025,-500.0,0.00019726,2]
[315198013,1708925444034,-500.0,0.00019726,2]
[315198014,1708925444046,-500.0,0.00019726,2]
[315198015,1708925444055,-292.12335644,0.00019726,2]
[315198016,1708925444065,-500.0,0.00019726,2]
[315198017,1708925444074,-500.0,0.00019726,2]
[315198018,1708925444083,-500.0,0.00019726,2]
[315198019,1708925444092,-2280.6,0.00019726,2]
[315198020,1708925444101,-501.43459561,0.00019726,2]
[315198021,1708925444110,-500.89874379,0.00019726,2]
[315198022,1708925444120,-501.78402,0.00019726,2]
[315198023,1708925444130,-500.0,0.00019726,2]
[315198024,1708925444139,-500.79176669,0.00019726,2]
[315198025,1708925444148,-500.0,0.00019726,2]
[315198026,1708925444158,-500.0,0.00019726,2]
[315198027,1708925444167,-500.0,0.00019726,2]
[315198028,1708925444176,-500.94944783,0.00019726,2]
[315198029,1708925444185,-1784.46,0.00019726,2]
[315198030,1708925444193,-478.11316382,0.00019726,2]
[315198031,1708925444203,-500.0,0.00019726,2]
[315198032,1708925444212,-500.0,0.00019726,2]
[315198033,1708925444221,-500.0,0.00019726,2]
[315198034,1708925444230,-500.0,0.00019726,2]
[315198035,1708925444239,-500.0,0.00019726,2]
[315198036,1708925444249,-500.0,0.00019726,2]
[315198037,1708925444258,-500.0,0.00019726,2]
[315198038,1708925444267,-500.0,0.00019726,2]
[315198039,1708925444276,-500.0,0.00019726,2]
[315198040,1708925444285,-500.0,0.00019726,2]
[315198041,1708925444294,-500.0,0.00019726,2]
[315198042,1708925444303,-500.0,0.00019726,2]
[315198043,1708925444312,-500.0,0.00019726,2]
[315198044,1708925444321,-1038.61,0.00019726,2]
[315198045,1708925444337,-723.83,0.00019726,2]
[315198046,1708925444351,-500.0,0.00019726,2]
[315198047,1708925444360,-500.0,0.00019726,2]
[315198048,1708925444369,-500.0,0.00019726,2]
[315198049,1708925444379,-500.0,0.00019726,2]
[315198050,1708925444388,-500.0,0.00019726,2]
[315198051,1708925444397,-500.0,0.00019726,2]
[315198052,1708925444408,-500.85128667,0.00019726,2]
[315198053,1708925444417,-500.0,0.00019726,2]
[315198054,1708925444427,-500.0,0.00019726,2]
[315198055,1708925444437,-500.0,0.00019726,2]
[315198056,1708925444446,-500.0,0.00019726,2]
[315198057,1708925444455,-500.0,0.00019726,2]
[315198058,1708925444465,-500.0,0.00019726,2]
[315198059,1708925444474,-500.0,0.00019726,2]
[315198060,1708925444484,-500.0,0.00019726,2]
[315198061,1708925444493,-500.0,0.00019726,2]
[315198062,1708925444503,-742.63,0.00019726,2]
[315198063,1708925444513,-10913.61,0.00019726,2]
[315198064,1708925444522,-500.0,0.00019726,2]
[315198065,1708925444531,-848.08,0.00019726,2]
[315198066,1708925444541,-500.0,0.00019726,2]
[315198067,1708925444550,-500.0,0.00019726,2]
[315198068,1708925444559,-4169.15,0.00019726,2]
[315198069,1708925444569,-500.0,0.00019726,2]
[315198070,1708925444578,-2007.94,0.00019726,2]
[315198071,1708925444587,-2701.18,0.00019726,2]
[315198072,1708925444596,-500.0,0.00019726,2]
[315198073,1708925444606,-249.10033961,0.00019726,2]
[315198074,1708925444615,-500.0,0.00019726,2]
[315198075,1708925444624,-487.01483259,0.00019726,2]
[315198076,1708925444633,-500.0,0.00019726,2]
[315198077,1708925444643,-500.0,0.00019726,2]
[315198078,1708925444652,-500.0,0.00019726,2]
[315198079,1708925444662,-442.24473459,0.00019726,2]
[315198080,1708925444671,-2918.65,0.00019726,2]
[315198081,1708925444681,-500.0,0.00019726,2]
[315198082,1708925444690,-500.0,0.00019726,2]
[315198083,1708925444699,-501.12560342,0.00019726,2]
[315198084,1708925444709,-2045.87,0.00019726,2]
[315198085,1708925444719,-500.0,0.00019726,2]
[315198086,1708925444728,-2185.25,0.00019726,2]
[315198087,1708925444738,-500.0,0.00019726,2]
[315198088,1708925444747,-500.81546176,0.00019726,2]
[315198089,1708925444757,-500.0,0.00019726,2]
[315198090,1708925444767,-500.0,0.00019726,2]
[315198091,1708925444776,-1000.0,0.00019726,2]
[315198092,1708925444785,-500.0,0.00019726,2]
[315198093,1708925444795,-500.0,0.00019726,2]
[315198094,1708925444804,-500.0,0.00019726,2]
[315198095,1708925444814,-500.0,0.00019726,2]
[315198096,1708925444824,-1298.14,0.00019726,2]
[315198097,1708925444834,-22234.18,0.00019726,2]
[315198098,1708925444843,-500.0,0.00019726,2]
[315198099,1708925444853,-500.0,0.00019726,2]
[315198100,1708925444862,-500.0,0.00019726,2]
[315198101,1708925444872,-503.07483176,0.00019726,2]
[315198102,1708925444882,-500.0,0.00019726,2]
[315198103,1708925444891,-436.52101816,0.00019726,2]
[315198104,1708925444901,-501.43554536,0.00019726,2]
[315198105,1708925444912,-500.0,0.00019726,2]
[315198106,1708925444921,-503.26279382,0.00019726,2]
[315198107,1708925444931,-1703.49,0.00019726,2]
[315198108,1708925444941,-500.0,0.00019726,2]
[315198109,1708925444952,-500.0,0.00019726,2]
[315198110,1708925444962,-500.0,0.00019726,2]
[315198111,1708925444972,-616.23,0.00019726,2]
[315198112,1708925444981,-500.0,0.00019726,2]
[315198113,1708925444991,-507.00886275,0.00019726,2]
[315198114,1708925445001,-500.0,0.00019726,2]
[315198115,1708925445011,-2220.13,0.00019726,2]
[315198116,1708925445020,-7885.35,0.00019726,2]
[315198117,1708925445029,-500.0,0.00019726,2]
[315198118,1708925445039,-500.0,0.00019726,2]
[315198119,1708925445052,-500.0,0.00019726,2]
[315198120,1708925445062,-500.0,0.00019726,2]
[315198121,1708925445071,-500.0,0.00019726,2]
[315198122,1708925445081,-500.0,0.00019726,2]
[315198123,1708925445091,-2947.45,0.00019726,2]
[315198124,1708925445101,-500.0,0.00019726,2]
[315198125,1708925445110,-505.00833293,0.00019726,2]
[315198126,1708925445120,-500.0,0.00019726,2]
[315198127,1708925445130,-500.0,0.00019726,2]
[315198128,1708925445139,-502.36151926,0.00019726,2]
[315198129,1708925445148,-500.0,0.00019726,2]
[315198130,1708925445159,-803.7,0.00019726,2]
[315198131,1708925445168,-500.0,0.00019726,2]
[315198132,1708925445177,-500.0,0.00019726,2]
[315198133,1708925445187,-500.0,0.00019726,2]
[315198134,1708925445196,-9661.40756531,0.00019726,2]
[315198137,1708925445979,-501.22568197,0.00019452,2]
[315198138,1708925445989,-1282.23654342,0.00019726,2]
[315198139,1708925446016,-11020.85589127,0.00019726,2]
[315198140,1708925446025,-3047.44,0.00019726,2]
[315198141,1708925446035,-2404.99,0.00019726,2]
[315198143,1708925446048,-4349.26,0.00019726,2]
[315198144,1708925446058,-500.0,0.00019726,2]
[315198145,1708925446067,-405.80118565,0.00019726,2]
[315198146,1708925446076,-500.0,0.00019726,2]
[315198147,1708925446086,-500.77094281,0.00019726,2]
[315198148,1708925446095,-500.0,0.00019726,2]
[315198149,1708925446105,-500.0,0.00019726,2]
[315198150,1708925446113,-2173.34,0.00019726,2]
[315198151,1708925446125,-500.0,0.00019726,2]
[315198152,1708925446134,-500.0,0.00019726,2]
[315198153,1708925446143,-1217.01,0.00019726,2]
[315198154,1708925446152,-3344.76,0.00019726,2]
[315198155,1708925446163,-1703.94,0.00019726,2]
[315198156,1708925446172,-501.82744386,0.00019726,2]
[315198157,1708925446181,-1592.75,0.00019726,2]
[315198158,1708925446190,-1477.38,0.00019726,2]
[315198159,1708925446199,-503.89798039,0.00019726,2]
[315198160,1708925446209,-500.0,0.00019726,2]
[315198161,1708925446218,-233.3684105,0.00019973,2]
[315198162,1708925446227,-153.0,0.00019973,2]
[315198163,1708925446237,-153.0,0.00019973,2]
[315198164,1708925446246,-153.0,0.00019973,2]
[315198165,1708925446257,-153.0,0.00019973,2]
[315198166,1708925446266,-306.0,0.00019973,2]
[315198167,1708925446276,-5337.30879984,0.00019975,2]
[315198168,1708925446285,-500.0,0.00019999,2]
[315198169,1708925446295,-500.0,0.00019999,2]
[315198170,1708925446305,-500.0,0.00019999,2]
[315198171,1708925446314,-390.5,0.00019999,2]
[315198172,1708925446324,-738.69,0.0002,2]
[315198173,1708925446334,-500.0,0.0002,2]
[315198174,1708925446344,-500.0,0.0002,2]
[315198175,1708925446353,-500.0,0.0002,2]
[315198176,1708925446363,-500.0,0.0002,2]
[315198177,1708925446372,-500.0,0.0002,2]
[315198178,1708925446382,-599.46,0.0002,2]
[315198179,1708925446392,-203.92104408,0.0002,2]
[315198180,1708925446401,-500.0,0.0002,2]
[315198181,1708925446413,-500.0,0.0002,2]
[315198182,1708925446423,-500.0,0.0002,2]
[315198183,1708925446432,-557.78269521,0.0002,2]
[315198184,1708925446442,-500.0,0.0002,2]
[315198185,1708925446451,-500.0,0.0002,2]
[315198186,1708925446461,-411.87418666,0.0002,2]
[315198187,1708925446470,-1464.53,0.0002,2]
[315198188,1708925446480,-599.04,0.0002,2]
[315198189,1708925446489,-792.95,0.0002,2]
[315198190,1708925446498,-500.0,0.0002,2]
[315198191,1708925446508,-500.0,0.0002,2]
[315198192,1708925446517,-500.0,0.0002,2]
[315198193,1708925446526,-500.0,0.0002,2]
[315198194,1708925446536,-500.0,0.0002,2]
[315198195,1708925446545,-176.66942179,0.0002,2]
[315198196,1708925446554,-500.0,0.0002,2]
[315198197,1708925446564,-500.0,0.0002,2]
[315198198,1708925446573,-500.0,0.0002,2]
[315198199,1708925446582,-2280.6,0.0002,2]
[315198200,1708925446591,-500.0,0.0002,2]
[315198201,1708925446600,-500.0,0.0002,2]
[315198202,1708925446610,-500.0,0.0002,2]
[315198203,1708925446619,-1784.46,0.0002,2]
[315198204,1708925446628,-500.0,0.0002,2]
[315198205,1708925446637,-500.0,0.0002,2]
[315198206,1708925446646,-500.0,0.0002,2]
[315198207,1708925446655,-500.0,0.0002,2]
[315198208,1708925446667,-505.95058571,0.0002,2]
[315198209,1708925446677,-500.0,0.0002,2]
[315198210,1708925446686,-646.85521638,0.0002,2]
[315198211,1708925446694,-500.0,0.0002,2]
[315198212,1708925446703,-500.0,0.0002,2]
[315198213,1708925446712,-501.29954357,0.0002,2]
[315198214,1708925446721,-239.92493776,0.0002,2]
[315198215,1708925446730,-500.0,0.0002,2]
[315198216,1708925446739,-500.0,0.0002,2]
[315198217,1708925446749,-1038.61,0.0002,2]
[315198218,1708925446759,-723.83,0.0002,2]
[315198219,1708925446768,-500.0,0.0002,2]
[315198220,1708925446777,-500.0,0.0002,2]
[315198221,1708925446786,-151.45456969,0.0002,2]
[315198222,1708925446795,-500.0,0.0002,2]
[315198223,1708925446805,-500.0,0.0002,2]
[315198224,1708925446814,-500.0,0.0002,2]
[315198225,1708925446823,-500.0,0.0002,2]
[315198226,1708925446833,-501.72333826,0.0002,2]
[315198227,1708925446842,-619.10188517,0.0002,2]
[315198228,1708925446851,-500.0,0.0002,2]
[315198229,1708925446860,-371.5006517,0.0002,2]
[315198230,1708925446869,-500.0,0.0002,2]
[315198231,1708925446879,-500.0,0.0002,2]
[315198232,1708925446888,-500.0,0.0002,2]
[315198233,1708925446898,-447.40547594,0.0002,2]
[315198234,1708925446908,-742.63,0.0002,2]
[315198235,1708925446918,-10913.61,0.0002,2]
[315198236,1708925446928,-500.0,0.0002,2]
[315198237,1708925446937,-500.0,0.0002,2]
[315198238,1708925446946,-4169.15,0.0002,2]
[315198239,1708925446956,-2007.94,0.0002,2]
[315198240,1708925446965,-2701.18,0.0002,2]
[315198241,1708925446974,-500.0,0.0002,2]
[315198242,1708925446984,-502.22509866,0.0002,2]
[315198243,1708925446994,-500.0,0.0002,2]
[315198244,1708925447004,-500.0,0.0002,2]
[315198245,1708925447013,-500.0,0.0002,2]
[315198246,1708925447023,-2918.65,0.0002,2]
[315198247,1708925447033,-500.0,0.0002,2]
[315198248,1708925447045,-500.0,0.0002,2]
[315198249,1708925447055,-2045.87,0.0002,2]
[315198250,1708925447065,-500.0,0.0002,2]
[315198251,1708925447074,-2185.25,0.0002,2]
[315198252,1708925447083,-500.0,0.0002,2]
[315198253,1708925447092,-500.0,0.0002,2]
[315198254,1708925447101,-1000.0,0.0002,2]
[315198255,1708925447110,-500.0,0.0002,2]
[315198256,1708925447121,-500.0,0.0002,2]
[315198257,1708925447131,-1298.14,0.0002,2]
[315198258,1708925447140,-22234.18,0.0002,2]
[315198259,1708925447149,-500.0,0.0002,2]
[315198260,1708925447158,-500.0,0.0002,2]
[315198261,1708925447168,-500.0,0.0002,2]
[315198262,1708925447179,-500.0,0.0002,2]
[315198263,1708925447189,-440.14556433,0.0002,2]
[315198264,1708925447198,-1703.49,0.0002,2]
[315198265,1708925447209,-500.0,0.0002,2]
[315198266,1708925447219,-500.0,0.0002,2]
[315198267,1708925447229,-616.23,0.0002,2]
[315198268,1708925447239,-500.0,0.0002,2]
[315198269,1708925447248,-2220.13,0.0002,2]
[315198270,1708925447257,-539.47583065,0.0002,2]
[315198271,1708925447266,-7885.35,0.0002,2]
[315198272,1708925447275,-501.70449876,0.0002,2]
[315198273,1708925447284,-503.8969164,0.0002,2]
[315198274,1708925447293,-500.0,0.0002,2]
[315198275,1708925447302,-500.0,0.0002,2]
[315198276,1708925447312,-502.01865313,0.0002,2]
[315198277,1708925447321,-2947.45,0.0002,2]
[315198278,1708925447330,-500.0,0.0002,2]
[315198279,1708925447340,-500.0,0.0002,2]
[315198280,1708925447350,-500.0,0.0002,2]
[315198281,1708925447359,-201.81516256,0.0002,2]
[315198282,1708925447368,-803.7,0.0002,2]
[315198283,1708925447378,-500.0,0.0002,2]
[315198284,1708925447387,-500.0,0.0002,2]
[315198285,1708925447396,-185.27418586,0.0002,2]
[315198286,1708925447407,-21964.5,0.0002,2]
[315198287,1708925447417,-3047.44,0.0002,2]
[315198288,1708925447426,-2404.99,0.0002,2]
[315198289,1708925447525,-4349.26,0.0002,2]
[315198290,1708925447535,-500.0,0.0002,2]
[315198291,1708925447544,-477.02525582,0.0002,2]
[315198292,1708925447554,-500.0,0.0002,2]
[315198293,1708925447563,-2173.34,0.0002,2]
[315198294,1708925447572,-500.0,0.0002,2]
[315198295,1708925447582,-1217.01,0.0002,2]
[315198296,1708925447591,-3344.76,0.0002,2]
[315198297,1708925447600,-1703.94,0.0002,2]
[315198298,1708925447609,-1592.75,0.0002,2]
[315198299,1708925447618,-1477.38,0.0002,2]
[315198300,1708925447627,-238.73773781,0.0002,2]
[315198301,1708925447637,-151.0,0.00020073,2]
[315198302,1708925447646,-166.666666,0.00020076,2]
[315198303,1708925447654,-175.5,0.000201,2]
[315198304,1708925447664,-1000.0,0.00020166,2]
[315198305,1708925447673,-5712.68583118,0.00020166,2]
[315198306,1708925447682,-1000.0,0.00020169,2]
[315198307,1708925447691,-173.90499793,0.00020169,2]
[315198308,1708925447700,-1000.0,0.00020169,2]
[315198309,1708925447709,-952.89417923,0.00020169,2]
[315198310,1708925447719,-1000.0,0.00020169,2]
[315198311,1708925447729,-483.53437679,0.00020169,2]
[315198312,1708925447738,-175.0,0.00020169,2]
[315198313,1708925447747,-1000.0,0.00020169,2]
[315198314,1708925447756,-906.806315,0.00020169,2]
[315198315,1708925447766,-906.806315,0.00020169,2]
[315198316,1708925447776,-1000.0,0.00020169,2]
[315198317,1708925447785,-500.0,0.00020172,2]
[315198318,1708925447794,-500.0,0.00020172,2]
[315198319,1708925447804,-500.0,0.00020172,2]
[315198320,1708925447813,-319.09963093,0.00020172,2]
[315198321,1708925447822,-377.60815985,0.00020174,2]
[315198322,1708925447831,-24976.13504719,0.00020175,2]
[315198323,1708925447841,-5000.0,0.00020175,2]
[315198324,1708925447850,-81905.63493577,0.00020175,2]
[315198325,1708925447859,-35147.05912721,0.00020175,2]
[315198326,1708925447869,-5000.0,0.00020175,2]
[315198327,1708925447878,-50000.0,0.00020175,2]
[315198328,1708925447887,-52422.58838344,0.00020175,2]
[315198329,1708925447897,-306.0,0.00020247,2]
[315198330,1708925447907,-306.1724424,0.00020247,2]
[315198331,1708925447917,-455.1304468,0.00020247,2]
[315198332,1708925447927,-153.0,0.00020247,2]
[315198333,1708925447937,-153.0,0.00020247,2]
[315198334,1708925447947,-738.69,0.00020273,2]
[315198335,1708925447956,-500.0,0.00020273,2]
[315198336,1708925447966,-500.0,0.00020273,2]
[315198337,1708925447975,-508.64002911,0.00020273,2]
[315198338,1708925447985,-500.0,0.00020273,2]
[315198339,1708925447994,-500.0,0.00020273,2]
[315198340,1708925448003,-599.46,0.00020273,2]
[315198341,1708925448012,-450.65957018,0.00020273,2]
[315198342,1708925448021,-266.5,0.00020273,2]
[315198343,1708925448031,-500.0,0.00020273,2]
[315198344,1708925448045,-500.0,0.00020273,2]
[315198345,1708925448054,-1464.53,0.00020273,2]
[315198346,1708925448064,-599.04,0.00020273,2]
[315198347,1708925448073,-792.95,0.00020273,2]
[315198348,1708925448082,-151.0,0.00020273,2]
[315198349,1708925448091,-151.0,0.00020273,2]
[315198350,1708925448101,-500.0,0.00020273,2]
[315198351,1708925448110,-500.0,0.00020273,2]
[315198352,1708925448120,-500.0,0.00020273,2]
[315198353,1708925448130,-500.0,0.00020273,2]
[315198354,1708925448139,-156.352017,0.00020273,2]
[315198355,1708925448148,-500.0,0.00020273,2]
[315198356,1708925448157,-221.26217802,0.00020273,2]
[315198357,1708925448167,-2280.6,0.00020273,2]
[315198358,1708925448176,-500.0,0.00020273,2]
[315198359,1708925448185,-500.0,0.00020273,2]
[315198360,1708925448194,-500.0,0.00020273,2]
[315198361,1708925448203,-1784.46,0.00020273,2]
[315198362,1708925448213,-500.0,0.00020273,2]
[315198363,1708925448222,-500.0,0.00020273,2]
[315198364,1708925448231,-502.65712732,0.00020273,2]
[315198365,1708925448240,-500.0,0.00020273,2]
[315198366,1708925448249,-500.0,0.00020273,2]
[315198367,1708925448258,-500.0,0.00020273,2]
[315198368,1708925448267,-500.0,0.00020273,2]
[315198369,1708925448277,-1038.61,0.00020273,2]
[315198370,1708925448286,-723.83,0.00020273,2]
[315198371,1708925448295,-500.0,0.00020273,2]
[315198372,1708925448304,-500.0,0.00020273,2]
[315198373,1708925448313,-500.0,0.00020273,2]
[315198374,1708925448322,-500.0,0.00020273,2]
[315198375,1708925448331,-500.0,0.00020273,2]
[315198376,1708925448340,-500.0,0.00020273,2]
[315198377,1708925448350,-500.0,0.00020273,2]
[315198378,1708925448359,-503.09950777,0.00020273,2]
[315198379,1708925448368,-500.0,0.00020273,2]
[315198380,1708925448377,-742.63,0.00020273,2]
[315198381,1708925448386,-10913.61,0.00020273,2]
[315198382,1708925448396,-500.0,0.00020273,2]
[315198383,1708925448404,-244.30017244,0.00020273,2]
[315198384,1708925448414,-4169.15,0.00020273,2]
[315198385,1708925448422,-2007.94,0.00020273,2]
[315198386,1708925448431,-2701.18,0.00020273,2]
[315198387,1708925448440,-500.0,0.00020273,2]
[315198388,1708925448449,-500.0,0.00020273,2]
[315198389,1708925448458,-500.0,0.00020273,2]
[315198390,1708925448467,-380.88443286,0.00020273,2]
[315198391,1708925448476,-2918.65,0.00020273,2]
[315198392,1708925448485,-500.0,0.00020273,2]
[315198393,1708925448494,-500.0,0.00020273,2]
[315198394,1708925448504,-2045.87,0.00020273,2]
[315198395,1708925448513,-500.0,0.00020273,2]
[315198396,1708925448522,-906.806315,0.00020273,2]
[315198397,1708925448531,-906.806315,0.00020273,2]
[315198398,1708925448541,-2185.25,0.00020273,2]
[315198399,1708925448550,-346.48014905,0.00020273,2]
[315198400,1708925448559,-175.05326981,0.00020273,2]
[315198401,1708925448569,-1000.0,0.00020273,2]
[315198402,1708925448577,-259.03475328,0.00020273,2]
[315198403,1708925448586,-500.0,0.00020273,2]
[315198404,1708925448595,-1298.14,0.00020273,2]
[315198405,1708925448604,-22234.18,0.00020273,2]
[315198406,1708925448614,-500.0,0.00020273,2]
[315198407,1708925448623,-500.0,0.00020273,2]
[315198408,1708925448632,-500.0,0.00020273,2]
[315198409,1708925448642,-489.08379982,0.00020273,2]
[315198410,1708925448651,-1703.49,0.00020273,2]
[315198411,1708925448661,-500.0,0.00020273,2]
[315198412,1708925448670,-500.0,0.00020273,2]
[315198413,1708925448680,-616.23,0.00020273,2]
[315198414,1708925448689,-404.9131461,0.00020273,2]
[315198415,1708925448698,-2220.13,0.00020273,2]
[315198416,1708925448708,-7885.35,0.00020273,2]
[315198417,1708925448717,-173.49720473,0.00020273,2]
[315198418,1708925448727,-500.0,0.00020273,2]
[315198419,1708925448737,-2947.45,0.00020273,2]
[315198420,1708925448747,-500.0,0.00020273,2]
[315198421,1708925448756,-500.0,0.00020273,2]
[315198422,1708925448765,-500.0,0.00020273,2]
[315198423,1708925448774,-803.7,0.00020273,2]
[315198424,1708925448784,-500.0,0.00020273,2]
[315198425,1708925448794,-500.0,0.00020273,2]
[315198426,1708925448804,-21964.5,0.00020273,2]
[315198427,1708925448813,-3047.44,0.00020273,2]